bitfinex-derivatives/quotes_SOLF0:USTF0_20260312
["timestamp","ask_amount","ask_price","bid_price","bid_amount"]
[1773282136583,2.54152234,85.71,85.65,2.54152234]
[1773282136784,9.61268149,85.709,85.65,2.54152234]
[1773282136981,2.54152234,85.71,85.65,2.54152234]
[1773282137286,10.5,85.707,85.65,2.54152234]
[1773282138582,10.5,85.707,85.661,6.36775286]
[1773282139282,10.501,85.698,85.661,6.36775286]
[1773282141285,10.5,85.708,85.661,6.36775286]
[1773282142282,10.5,85.708,85.67,8.9089143]
[1773282142486,10.5,85.708,85.671,6.36739196]
[1773282146388,10.499,85.717,85.671,6.36739196]
[1773282146584,2.54152234,85.73,85.671,6.3696522]
[1773282146890,9.61549493,85.729,85.671,6.3696522]
[1773282147089,9.61549493,85.728,85.671,6.3696522]
[1773282147391,9.61549493,85.727,85.671,6.3696522]
[1773282147590,9.61549493,85.726,85.671,6.3696522]
[1773282147790,9.61549493,85.725,85.671,6.3696522]
[1773282147985,9.61549493,85.724,85.671,6.3696522]
[1773282148186,2.54152234,85.73,85.671,6.3696522]
[1773282148187,9.61549493,85.723,85.671,6.3696522]
[1773282148383,10.499,85.713,85.671,6.3696522]
[1773282148890,0.07389937,85.706,85.671,6.3696522]
[1773282150593,10.5,85.705,85.671,6.3696522]
[1773282154797,0.07389937,85.706,85.659,6.38991975]
[1773282155298,2.54152234,85.71,85.659,6.38991975]
[1773282156203,10.501,85.699,85.661,6.3900935]
[1773282156599,0.07409225,85.693,85.661,6.3900935]
[1773282158793,10.502,85.692,85.661,6.3900935]
[1773282160394,10.502,85.692,85.65,2.54152234]
[1773282160901,10.502,85.692,85.651,6.41190841]
[1773282161398,10.503,85.683,85.651,6.41190841]
[1773282163302,2.54152234,85.7,85.651,6.41190841]
[1773282163507,2.54152234,85.69,85.634,6.40560421]
[1773282163805,71.57,85.708,85.624,16.06161167]
[1773282163806,34.91,85.698,85.641,6.40560421]
[1773282164602,10.57807415,85.678,85.641,6.40560421]
[1773282165306,0.07407415,85.678,85.641,6.40560421]
[1773282168404,0.07407415,85.678,85.63,2.54152234]
[1773282168606,0.07407415,85.678,85.631,6.40525896]
[1773282169006,2.54152234,85.69,85.631,6.40525896]
[1773282169210,10.505,85.667,85.631,6.40525896]
[1773282170008,10.505,85.667,85.624,16.06161167]
[1773282170408,10.505,85.667,85.625,6.34826122]
[1773282170610,10.504,85.677,85.641,6.34826122]
[1773282172414,0.07383737,85.668,85.641,6.34826122]
[1773282173316,2.54152234,85.7,85.651,6.29416727]
[1773282173513,2.54152234,85.69,85.651,6.29416727]
[1773282173718,2.54222141,85.69,85.651,6.29416727]
[1773282174009,10.503,85.678,85.631,6.28504443]
[1773282176417,35.02,85.716,85.66,2.54222141]
[1773282176617,35.02,85.716,85.646,0.07410371]
[1773282176618,2.54222141,85.71,85.65,6.295969]
[1773282176919,35.02,85.716,85.65,6.295969]
[1773282176920,2.54222141,85.7,85.65,6.295969]
[1773282177114,10.502,85.69,85.65,6.295969]
[1773282177920,10.501,85.7,85.651,6.33584718]
[1773282178114,13.04322141,85.7,85.651,6.33584718]
[1773282178516,10.501,85.7,85.651,6.33584718]
[1773282178717,13.04322141,85.7,85.651,6.33584718]
[1773282178920,10.501,85.7,85.651,6.33584718]
[1773282179319,35.02,85.729,85.651,6.33584718]
[1773282179520,2.54222141,85.7,85.651,6.33584718]
[1773282179715,2.54222141,85.71,85.651,6.33584718]
[1773282180414,2.54222141,85.73,85.671,6.43670756]
[1773282180618,2.54222141,85.74,85.681,6.43670756]
[1773282180818,36.68,85.741,85.69,2.54222141]
[1773282181020,2.54222141,85.76,85.701,6.43670756]
[1773282181216,36.68,85.771,85.711,6.43670756]
[1773282181217,2.54222141,85.77,85.711,6.43670756]
[1773282181425,10.493,85.762,85.72,8.95132032]
[1773282181627,10.493,85.762,85.721,6.40909891]
[1773282181831,36.68,85.771,85.73,2.54222141]
[1773282182123,2.54222141,85.76,85.701,6.40909891]
[1773282182319,36.68,85.794,85.624,16.06161167]
[1773282182320,10.499,85.718,85.67,2.54222141]
[1773282182727,1.70152773,85.719,85.66,2.54222141]
[1773282182926,10.5,85.708,85.65,2.54222141]
[1773282183125,12.20152773,85.708,85.65,2.54222141]
[1773282183324,12.20152773,85.708,85.624,16.06161167]
[1773282183524,12.20152773,85.708,85.65,2.54222141]
[1773282184225,10.5,85.708,85.661,3.81412974]
[1773282184420,1.7683661,85.704,85.661,3.81412974]
[1773282185323,10.5,85.703,85.661,3.81412974]
[1773282186526,2.54222141,85.7,85.661,3.81412974]
[1773282187927,2.54222141,85.7,85.631,36.66]
[1773282187928,1.79902695,85.694,85.641,3.81412974]
[1773282188221,2.54222141,85.69,85.641,3.81412974]
[1773282188530,1.79902695,85.694,85.641,3.81412974]
[1773282188927,10.5,85.704,85.65,2.54222141]
[1773282189131,10.5,85.704,85.651,3.81412974]
[1773282190628,10.5,85.704,85.669,0.07377321]
[1773282192337,1.78497752,85.703,85.669,0.07377321]
[1773282192532,2.54222141,85.7,85.669,0.07377321]
[1773282192729,1.78497752,85.703,85.669,0.07377321]
[1773282193334,2.54222141,85.71,85.669,3.88790295]
[1773282193542,10.499,85.715,85.669,3.88790295]
[1773282194137,39.20222141,85.73,85.671,3.81412974]
[1773282194338,1.78321287,85.729,85.671,3.81412974]
[1773282195437,12.28021287,85.729,85.671,3.81412974]
[1773282196132,10.497,85.729,85.671,3.81412974]
[1773282196638,2.54222141,85.73,85.671,3.81412974]
[1773282196842,13.03822141,85.74,85.692,3.81412974]
[1773282197441,10.497,85.73,85.692,3.81412974]
[1773282197643,13.03922141,85.73,85.692,3.81412974]
[1773282198640,12.25380465,85.724,85.691,0.07365705]
[1773282198841,1.75580465,85.719,85.691,0.07365705]
[1773282199442,1.75580465,85.719,85.665,3.81412974]
[1773282200141,12.25380465,85.719,85.665,3.81412974]
[1773282204847,12.25380465,85.719,85.671,3.83356582]
[1773282206650,1.75580465,85.719,85.671,3.83356582]
[1773282206852,1.74647904,85.728,85.671,3.83356582]
[1773282207148,10.498,85.727,85.686,0.07413437]
[1773282207353,1.74700101,85.726,85.686,0.07413437]
[1773282211251,36.66,85.742,85.686,3.90770019]
[1773282211554,1.77274943,85.749,85.691,3.83356582]
[1773282211758,2.54222141,85.73,85.691,3.83356582]
[1773282212054,1.77274943,85.729,85.671,3.83356582]
[1773282212560,2.54222141,85.71,85.671,3.83356582]
[1773282212762,1.77274943,85.709,85.651,3.83356582]
[1773282214159,1.77274943,85.709,85.654,3.83356582]
[1773282216165,1.77274943,85.709,85.673,0.07399762]
[1773282218372,1.77507574,85.699,85.673,0.07399762]
[1773282218871,12.27607574,85.699,85.654,3.83356582]
[1773282220666,10.5,85.708,85.654,3.83356582]
[1773282220973,10.5,85.708,85.661,3.83356582]
[1773282221472,1.77076985,85.713,85.661,3.83356582]
[1773282222073,10.499,85.712,85.661,3.83356582]
[1773282222471,1.76069426,85.726,85.671,3.77756637]
[1773282223470,10.498,85.721,85.671,3.77756637]
[1773282224576,12.25937768,85.721,85.671,3.77756637]
[1773282224974,1.76137768,85.717,85.671,3.77756637]
[1773282226381,10.499,85.715,85.671,3.77756637]
[1773282226781,1.76137768,85.717,85.671,3.77756637]
[1773282230182,10.498,85.725,85.671,3.77756637]
[1773282230382,2.54222141,85.74,85.681,3.95685409]
[1773282230680,1.76327977,85.741,85.691,3.95685409]
[1773282230887,2.54222141,85.74,85.691,3.95685409]
[1773282231081,4.30550118,85.74,85.691,3.95685409]
[1773282231288,1.76327977,85.74,85.691,3.95685409]
[1773282232482,10.496,85.739,85.691,3.95685409]
[1773282234087,10.495,85.747,85.691,3.95685409]
[1773282235085,10.496,85.743,85.691,3.95685409]
[1773282236093,1.77297164,85.742,85.691,3.95685409]
[1773282236389,36.68,85.766,85.691,3.95685409]
[1773282236390,1.77297164,85.739,85.691,3.95685409]
[1773282237290,12.26897164,85.737,85.691,3.95685409]
[1773282238996,1.77297164,85.737,85.691,3.95685409]
[1773282239691,1.77297164,85.737,85.693,3.95685409]
[1773282239890,10.495,85.746,85.693,3.95685409]
[1773282240687,1.7667852,85.745,85.693,3.95685409]
[1773282240883,10.495,85.746,85.693,3.95685409]
[1773282241085,10.494,85.756,85.701,3.95685409]
[1773282241892,1.74669471,85.769,85.721,3.95685409]
[1773282243790,1.74669471,85.769,85.736,0.07399316]
[1773282245687,10.491,85.778,85.736,0.07399316]
[1773282245892,1.73616059,85.782,85.736,4.03084725]
[1773282246388,1.73616059,85.779,85.736,3.95685409]
[1773282246587,10.492,85.773,85.736,3.95685409]
[1773282247391,1.73616059,85.779,85.736,3.95685409]
[1773282248098,1.73616059,85.779,85.741,3.95685409]
[1773282248298,10.49,85.785,85.741,3.95685409]
[1773282249598,1.72525374,85.79,85.741,3.95685409]
[1773282250190,4.26398675,85.79,85.741,3.95685409]
[1773282250590,10.489,85.795,85.741,3.95685409]
[1773282250591,1.69813022,85.789,85.741,3.95685409]
[1773282252091,10.49,85.788,85.741,3.95685409]
[1773282252999,1.75246694,85.787,85.741,3.95685409]
[1773282254299,10.489,85.797,85.741,3.95685409]
[1773282254502,1.76649646,85.789,85.743,3.95685409]
[1773282255998,1.76676777,85.779,85.73,2.53873301]
[1773282256202,1.76676777,85.769,85.721,3.95685409]
[1773282257003,1.76676777,85.766,85.721,3.95685409]
[1773282258198,1.76676777,85.766,85.709,10.5]
[1773282258199,1.7353018,85.749,85.709,3.95685409]
[1773282259105,4.27403481,85.76,85.709,3.95685409]
[1773282259304,1.7353018,85.759,85.709,3.95685409]
[1773282261707,4.2768632,85.75,85.709,3.95685409]
[1773282262299,10.495,85.749,85.709,3.95685409]
[1773282262500,12.23313019,85.749,85.709,3.95685409]
[1773282262701,1.73813019,85.748,85.721,0.07374506]
[1773282262907,1.73813019,85.739,85.721,0.07374506]
[1773282270010,1.73813019,85.739,85.697,3.87328697]
[1773282271009,10.496,85.737,85.697,3.87328697]
[1773282271313,1.62079286,85.736,85.697,3.87328697]
[1773282271907,2.53873301,85.73,85.697,3.87328697]
[1773282273713,1.62079286,85.736,85.697,3.87328697]
[1773282275614,10.497,85.733,85.697,3.87328697]
[1773282275913,2.53873301,85.73,85.697,3.87328697]
[1773282276115,10.497,85.733,85.697,3.87328697]
[1773282276423,3.84282852,85.763,85.72,2.53873301]
[1773282276611,3.84282852,85.749,85.694,3.87328697]
[1773282276809,3.84282852,85.739,85.694,3.87328697]
[1773282279909,3.84282852,85.751,85.701,3.87328697]
[1773282281420,3.84282852,85.751,85.702,3.95121245]
[1773282282718,3.72537759,85.749,85.702,3.95121245]
[1773282284221,3.72537759,85.744,85.691,3.95121245]
[1773282286120,3.72537759,85.74,85.691,3.95121245]
[1773282287020,3.72537759,85.738,85.691,3.95121245]
[1773282288425,3.72537759,85.735,85.691,3.95121245]
[1773282289123,3.72537759,85.731,85.691,3.95121245]
[1773282290618,0.07420448,85.72,85.691,3.95121245]
[1773282295325,3.84118912,85.719,85.68,3.98064549]
[1773282302935,3.84118912,85.717,85.661,3.98064549]
[1773282303140,3.84118912,85.709,85.661,3.98064549]
[1773282306340,10.5,85.708,85.661,3.98064549]
[1773282306642,3.84118912,85.707,85.661,3.98064549]
[1773282307140,3.84118912,85.703,85.661,3.98064549]
[1773282308941,3.84118912,85.697,85.653,36.7]
[1773282309435,3.84118912,85.697,85.654,3.98064549]
[1773282310244,10.5,85.705,85.654,3.98064549]
[1773282311150,3.84118912,85.709,85.658,3.98064549]
[1773282312445,10.5,85.705,85.658,3.98064549]
[1773282312651,0.07417951,85.692,85.658,3.98064549]
[1773282316048,0.07417951,85.692,85.661,10.505]
[1773282316254,0.07417951,85.692,85.662,3.98064549]
[1773282317549,0.07417951,85.692,85.664,3.98064549]
[1773282319946,0.07417951,85.692,85.665,10.505]
[1773282320153,0.07417951,85.692,85.666,4.01840788]
[1773282320347,0.07417951,85.692,85.665,10.505]
[1773282320348,3.7072879,85.72,85.671,4.01840788]
[1773282321459,3.7072879,85.72,85.673,4.01840788]
[1773282321958,3.7072879,85.72,85.687,0.07450806]
[1773282322159,3.7072879,85.718,85.687,0.07450806]
[1773282323554,3.7072879,85.718,85.663,10.505]
[1773282323751,3.7072879,85.716,85.664,4.01840788]
[1773282324661,3.7072879,85.709,85.664,4.01840788]
[1773282327157,6.24710105,85.72,85.671,14.52240788]
[1773282327359,3.7072879,85.72,85.672,4.01840788]
[1773282328357,3.7072879,85.72,85.675,4.01840788]
[1773282329662,3.7072879,85.72,85.674,10.504]
[1773282329663,3.7072879,85.732,85.681,4.01840788]
[1773282330459,10.497,85.73,85.681,4.01840788]
[1773282330664,3.7072879,85.729,85.67,17.06222103]
[1773282330862,3.7072879,85.719,85.67,4.01840788]
[1773282331258,3.7072879,85.717,85.67,4.01840788]
[1773282332166,3.7072879,85.717,85.671,4.01840788]
[1773282333461,3.7072879,85.728,85.676,4.01840788]
[1773282333664,3.7072879,85.728,85.681,4.01840788]
[1773282334571,3.7072879,85.726,85.681,4.01840788]
[1773282334765,0.07405375,85.713,85.681,4.01840788]
[1773282340563,3.7072879,85.726,85.681,4.01840788]
[1773282340564,3.69708799,85.726,85.681,4.01840788]
[1773282342372,10.498,85.723,85.681,4.01840788]
[1773282342578,4.0183692,85.719,85.666,3.97053111]
[1773282344367,4.0183692,85.717,85.666,3.97053111]
[1773282345065,4.0183692,85.717,85.683,0.07457025]
[1773282345572,4.0183692,85.714,85.683,0.07457025]
[1773282346175,4.0183692,85.714,85.676,3.97053111]
[1773282348979,4.0183692,85.712,85.676,3.97053111]
[1773282349170,4.0183692,85.723,85.676,3.97053111]
[1773282349574,4.0183692,85.723,85.68,2.53981315]
[1773282349775,4.0183692,85.723,85.681,3.97053111]
[1773282350984,10.497,85.732,85.691,4.00650403]
[1773282351180,3.97288308,85.731,85.691,4.00650403]
[1773282351377,2.53981315,85.74,85.691,4.00650403]
[1773282351378,3.97288308,85.729,85.691,4.00650403]
[1773282353982,3.97288308,85.729,85.701,0.07405688]
[1773282355382,10.497,85.728,85.701,0.07405688]
[1773282356183,3.97288308,85.727,85.701,0.07405688]
[1773282362387,3.97288308,85.725,85.701,0.07405688]
[1773282364398,3.97288308,85.722,85.701,0.07405688]
[1773282365890,3.97288308,85.716,85.669,4.00650403]
[1773282366789,14.47188308,85.713,85.669,4.00650403]
[1773282366993,3.97288308,85.712,85.671,4.00650403]
[1773282367591,3.97288308,85.712,85.674,10.504]
[1773282367799,3.97288308,85.739,85.681,4.00650403]
[1773282368103,3.97288308,85.739,85.691,4.00650403]
[1773282368400,3.97288308,85.739,85.701,4.00650403]
[1773282368596,36.7,85.744,85.701,4.00650403]
[1773282370301,3.97288308,85.729,85.687,4.00650403]
[1773282370699,3.97288308,85.741,85.701,4.00650403]
[1773282375203,10.496,85.739,85.701,4.00650403]
[1773282375399,3.97288308,85.738,85.69,6.54583584]
[1773282375604,3.97288308,85.738,85.69,4.00650403]
[1773282376506,3.97288308,85.733,85.69,4.00650403]
[1773282379403,3.97288308,85.733,85.691,4.00650403]
[1773282386111,3.96567165,85.729,85.677,3.86494268]
[1773282386509,3.96567165,85.729,85.68,2.53933181]
[1773282386715,3.96567165,85.729,85.681,3.86494268]
[1773282387212,3.96567165,85.722,85.681,3.86494268]
[1773282387418,3.96567165,85.722,85.653,28.94355765]
[1773282387419,3.96567165,85.722,85.67,2.53933181]
[1773282387616,3.96567165,85.713,85.666,3.86494268]
[1773282388516,3.96567165,85.713,85.67,2.53933181]
[1773282389114,3.96567165,85.713,85.666,3.86494268]
[1773282390418,3.96567165,85.713,85.67,2.53933181]
[1773282390818,3.96567165,85.713,85.67,6.40427449]
[1773282391320,3.96567165,85.713,85.671,3.86494268]
[1773282397421,3.96567165,85.713,85.681,3.86494268]
[1773282397616,3.96567165,85.713,85.68,2.53933181]
[1773282397617,0.07414951,85.714,85.691,3.86494268]
[1773282397820,3.96567165,85.736,85.691,3.86494268]
[1773282399326,3.96567165,85.733,85.691,3.86494268]
[1773282400528,3.96567165,85.733,85.703,0.0740012]
[1773282407834,2.53933181,85.73,85.675,3.80535667]
[1773282408134,3.73371893,85.729,85.675,3.80535667]
[1773282408335,3.73371893,85.729,85.68,6.34468848]
[1773282408532,3.73371893,85.729,85.681,3.80535667]
[1773282413538,3.73371893,85.729,85.689,4.00737952]
[1773282413843,3.73371893,85.729,85.69,2.53933181]
[1773282414141,3.73371893,85.729,85.691,4.00737952]
[1773282415143,4.05526378,85.739,85.701,4.00737952]
[1773282424855,0.07371303,85.729,85.701,4.00737952]
[1773282429964,0.07371303,85.729,85.711,4.00737952]
[1773282430964,0.07371303,85.729,85.701,4.00737952]
[1773282431359,0.07371303,85.729,85.702,10.5]
[1773282431668,0.07371303,85.729,85.702,14.50737952]
[1773282431867,0.07371303,85.729,85.703,4.00737952]
[1773282434170,0.07371303,85.729,85.706,4.00737952]
[1773282435366,0.07371303,85.729,85.708,4.00737952]
[1773282435567,0.07371303,85.729,85.711,4.00737952]
[1773282437463,0.07371303,85.729,85.714,4.00737952]
[1773282437666,0.07371303,85.729,85.71,4.00737952]
[1773282446871,3.81544012,85.752,85.71,4.00737952]
[1773282449271,3.81544012,85.752,85.712,10.499]
[1773282449471,3.81544012,85.752,85.713,3.68349963]
[1773282449869,3.81544012,85.752,85.718,3.68349963]
[1773282452179,3.81544012,85.769,85.718,3.68349963]
[1773282452379,3.81544012,85.769,85.721,3.68349963]
[1773282452773,10.492,85.77,85.721,3.68349963]
[1773282452774,3.81544012,85.766,85.721,3.68349963]
[1773282452970,3.81544012,85.759,85.721,3.68349963]
[1773282455184,3.81544012,85.759,85.731,0.07376431]
[1773282483411,3.88152124,85.787,85.74,2.53685674]
[1773282483610,3.88152124,85.787,85.741,4.00605148]
[1773282484211,3.88152124,85.787,85.744,14.50105148]
[1773282485511,3.88152124,85.787,85.745,4.00605148]
[1773282485914,3.88152124,85.787,85.749,10.495]
[1773282486214,3.88152124,85.787,85.73,2.53685674]
[1773282486408,3.88152124,85.779,85.724,4.00605148]
[1773282486616,3.88152124,85.779,85.734,4.00605148]
[1773282486911,3.88152124,85.779,85.743,0.07451096]
[1773282495217,3.88152124,85.779,85.744,4.00605148]
[1773282495618,3.88152124,85.794,85.744,4.00605148]
[1773282498520,3.88152124,85.789,85.744,4.00605148]
[1773282499616,3.88152124,85.789,85.745,4.00605148]
[1773282500923,3.88152124,85.789,85.758,0.07410271]
[1773282502722,1.88152124,85.789,85.758,0.07410271]
[1773282503414,10.49,85.786,85.758,0.07410271]
[1773282504720,3.97885437,85.785,85.758,0.07410271]
[1773282507421,3.97885437,85.785,85.723,36.7]
[1773282507422,3.97885437,85.769,85.711,3.85968771]
[1773282508723,3.97885437,85.769,85.721,3.85968771]
[1773282511728,3.97885437,85.765,85.721,3.85968771]
[1773282514133,0.07428394,85.752,85.721,3.85968771]
[1773282517938,4.05313831,85.752,85.712,14.35868771]
[1773282518136,4.05313831,85.752,85.713,3.85968771]
[1773282525242,4.05313831,85.752,85.715,10.499]
[1773282525440,0.07428394,85.752,85.721,3.85522161]
[1773282526037,3.74655813,85.753,85.721,3.85522161]
[1773282526443,3.74655813,85.753,85.724,14.35322161]
[1773282526746,0.07425437,85.746,85.725,3.85522161]
[1773282540445,4.01919456,85.779,85.73,2.53685674]
[1773282540751,4.01919456,85.779,85.731,3.65269629]
[1773282541453,4.01919456,85.779,85.741,3.65269629]
[1773282543054,4.01919456,85.779,85.731,3.65269629]
[1773282544250,4.01919456,85.779,85.746,0.07406904]
[1773282579379,4.02227089,85.776,85.746,0.07406904]
[1773282583480,4.02227089,85.776,85.747,10.495]
[1773282585979,4.02227089,85.776,85.746,0.07406904]
[1773282591785,14.51327089,85.776,85.746,0.07406904]
[1773282592095,2.53592927,85.78,85.746,0.07406904]
[1773282592096,3.93642149,85.775,85.746,0.07406904]
[1773282592289,2.53592927,85.77,85.724,3.6849994]
[1773282592488,3.93642149,85.768,85.724,3.6849994]
[1773282592683,3.93642149,85.766,85.724,3.6849994]
[1773282595896,3.93642149,85.766,85.71,36.7]
[1773282595897,3.93642149,85.764,85.711,3.6849994]
[1773282596090,3.93642149,85.759,85.711,3.6849994]
[1773282598094,3.93642149,85.759,85.712,14.1839994]
[1773282598295,3.93642149,85.759,85.712,3.6849994]
[1773282600192,3.93642149,85.749,85.693,40.3849994]
[1773282600392,3.93642149,85.739,85.693,40.3849994]
[1773282600588,3.93642149,85.739,85.693,3.6849994]
[1773282600793,3.93642149,85.729,85.693,3.6849994]
[1773282600994,3.93642149,85.729,85.683,3.6849994]
[1773282603395,3.93642149,85.739,85.691,3.6849994]
[1773282604409,3.93642149,85.739,85.693,3.6849994]
[1773282605402,13.031302,85.76,85.701,3.6849994]
[1773282605607,3.93642149,85.75,85.701,3.6849994]
[1773282606007,3.93642149,85.749,85.705,3.6849994]
[1773282608510,3.93642149,85.749,85.71,2.538302]
[1773282608810,3.93642149,85.749,85.708,3.6849994]
[1773282613609,0.07398465,85.737,85.708,3.6849994]
[1773282615309,3.93642149,85.736,85.7,2.538302]
[1773282615508,3.93642149,85.736,85.69,3.6849994]
[1773282615509,3.93642149,85.736,85.691,3.6849994]
[1773282621825,3.93642149,85.736,85.693,3.74238171]
[1773282622717,3.93642149,85.736,85.696,3.74238171]
[1773282623816,4.05173593,85.749,85.701,3.74238171]
[1773282625222,4.05173593,85.749,85.705,3.74238171]
[1773282626323,0.07352994,85.736,85.705,3.74238171]
[1773282629725,4.12526587,85.736,85.694,3.74238171]
[1773282630322,4.12526587,85.736,85.69,2.538302]
[1773282630323,0.07352994,85.736,85.696,3.74238171]
[1773282630628,0.07352994,85.736,85.711,3.74238171]
[1773282631221,4.05173593,85.75,85.711,3.74238171]
[1773282631527,0.07432648,85.732,85.711,3.74238171]
[1773282631723,4.05173593,85.75,85.711,3.74238171]
[1773282631931,4.05173593,85.749,85.7,3.74238171]
[1773282634832,4.05173593,85.749,85.716,0.07395131]
[1773282635431,2.538302,85.75,85.716,0.07395131]
[1773282635432,4.05173593,85.746,85.716,0.07395131]
[1773282642741,3.75454797,85.739,85.69,3.9537457]
[1773282643341,3.75454797,85.739,85.701,3.9537457]
[1773282643544,3.75454797,85.759,85.701,3.9537457]
[1773282644243,3.75454797,85.757,85.701,3.9537457]
[1773282644544,3.75454797,85.756,85.703,3.9537457]
[1773282644943,3.75454797,85.756,85.707,3.9537457]
[1773282645149,3.75454797,85.756,85.71,2.538302]
[1773282645339,3.75454797,85.756,85.711,3.9537457]
[1773282646453,3.75454797,85.756,85.712,3.9537457]
[1773282647241,3.75454797,85.756,85.715,3.9537457]
[1773282656348,2.538302,85.75,85.705,4.00533898]
[1773282656551,3.69963124,85.749,85.705,4.00533898]
[1773282659649,3.69963124,85.749,85.707,4.00533898]
[1773282662151,3.69963124,85.749,85.708,10.5]
[1773282662353,3.69963124,85.749,85.711,4.00533898]
[1773282663354,3.69963124,85.749,85.712,14.50433898]
[1773282663553,3.69963124,85.749,85.713,4.00533898]
[1773282664257,3.69963124,85.763,85.717,4.00533898]
[1773282666860,3.69963124,85.749,85.707,4.00533898]
[1773282667255,3.77383483,85.749,85.707,4.00533898]
[1773282668359,0.07420359,85.749,85.711,4.00533898]
[1773282668960,3.69963124,85.759,85.711,4.00533898]
[1773282669361,3.69963124,85.759,85.715,4.00533898]
[1773282672066,0.07414225,85.746,85.715,4.00533898]
[1773282673565,0.07414225,85.746,85.72,4.00533898]
[1773282678368,0.07414225,85.746,85.72,6.54270423]
[1773282678565,0.07414225,85.746,85.721,4.00533898]
[1773282678861,3.69963124,85.776,85.721,4.00533898]
[1773282679066,3.69963124,85.774,85.721,4.00533898]
[1773282680468,3.69963124,85.774,85.723,3.69774917]
[1773282681266,3.67392417,85.772,85.725,3.69774917]
[1773282681968,2.53736525,85.77,85.725,3.69774917]
[1773282682168,3.67392417,85.769,85.725,3.69774917]
[1773282682966,3.67392417,85.767,85.725,3.69774917]
[1773282687369,3.67392417,85.759,85.715,3.69774917]
[1773282687570,3.67392417,85.759,85.705,3.69774917]
[1773282688371,3.67392417,85.757,85.705,3.69774917]
[1773282689472,0.07355713,85.74,85.705,3.69774917]
[1773282690070,0.07355713,85.74,85.708,3.69774917]
[1773282692573,0.07355713,85.74,85.709,10.5]
[1773282693077,0.07355713,85.74,85.71,3.69774917]
[1773282694280,0.07355713,85.74,85.71,6.23511442]
[1773282695083,0.07355713,85.74,85.711,3.69774917]
[1773282713996,10.496,85.739,85.711,3.69774917]
[1773282714298,0.07355713,85.74,85.711,3.69774917]
[1773282722608,0.07355713,85.74,85.701,3.92082673]
[1773282722609,3.85915347,85.739,85.701,3.92082673]
[1773282722809,3.85915347,85.739,85.69,3.92082673]
[1773282723306,3.85915347,85.736,85.69,3.92082673]
[1773282723508,3.85915347,85.736,85.68,2.53736525]
[1773282723705,3.85915347,85.736,85.681,3.92082673]
[1773282724303,0.07403825,85.717,85.681,3.92082673]
[1773282725209,3.93319172,85.717,85.681,3.92082673]
[1773282725703,3.93319172,85.717,85.656,15.49786735]
[1773282725704,2.54078438,85.7,85.656,15.49786735]
[1773282726101,0.07403825,85.717,85.645,15.49786735]
[1773282726102,2.54078438,85.69,85.645,15.49786735]
[1773282726514,2.54078438,85.7,85.645,15.49786735]
[1773282726906,10.502,85.687,85.645,15.49786735]
[1773282727105,10.502,85.687,85.634,15.55014926]
[1773282727501,2.54078438,85.68,85.634,15.55014926]
[1773282728305,10.502,85.687,85.634,15.55014926]
[1773282732611,10.504,85.677,85.625,15.60904073]
[1773282733614,10.505,85.667,85.625,15.60904073]
[1773282735212,10.506,85.655,85.625,4.073e-05]
[1773282735415,2.54078438,85.68,85.625,4.073e-05]
[1773282735806,10.503,85.679,85.625,4.073e-05]
[1773282736113,10.503,85.679,85.63,2.54078438]
[1773282737211,10.503,85.679,85.631,7.8015738]
[1773282739513,2.54078438,85.67,85.617,7.79457911]
[1773282740418,10.506,85.658,85.617,7.79457911]
[1773282742815,10.506,85.658,85.624,0.00061167]
[1773282743914,0.07432236,85.65,85.624,0.00061167]
[1773282745517,10.507,85.648,85.624,0.00061167]
[1773282745719,10.507,85.648,85.606,7.7621536]
[1773282746616,10.508,85.639,85.606,7.7621536]
[1773282748617,10.508,85.639,85.552,2.03233041]
[1773282748618,37.53078438,85.68,85.621,7.76659546]
[1773282748824,34.99,85.688,85.631,7.76659546]
[1773282749018,2.54078438,85.68,85.631,7.76659546]
[1773282750316,10.505,85.663,85.631,7.76659546]
[1773282750517,34.99,85.704,85.631,7.76659546]
[1773282750722,2.54078438,85.69,85.631,7.76659546]
[1773282751318,10.503,85.683,85.631,7.76659546]
[1773282754627,0.07446587,85.666,85.631,7.76659546]
[1773282766845,36.72,85.71,85.597,34.99]
[1773282766846,2.54078438,85.71,85.651,7.7586994]
[1773282767033,9.7342294,85.709,85.651,7.7586994]
[1773282767232,2.54078438,85.71,85.651,7.7586994]
[1773282767233,9.7342294,85.708,85.651,7.7586994]
[1773282767438,9.7342294,85.707,85.651,7.7586994]
[1773282767639,10.502,85.69,85.651,7.7586994]
[1773282769048,10.502,85.69,85.662,0.07468788]
[1773282769245,10.503,85.686,85.662,0.07468788]
[1773282770246,9.77108509,85.685,85.662,0.07468788]
[1773282770551,10.503,85.686,85.662,0.07468788]
[1773282770751,9.77108509,85.685,85.662,0.07468788]
[1773282770955,10.503,85.686,85.662,0.07468788]